fUSD/lending_fUSD_20240718
["ID","MTS","AMOUNT","RATE_DAILY","PERIOD"]
[332579656,1721311850756,-151.0,0.00034795,7]
[332579657,1721311850774,-2437.22,0.00034795,14]
[332579658,1721311850793,-4064.37,0.00034795,14]
[332579659,1721311850806,-188.431532,0.00034795,7]
[332579660,1721311850821,-722.34,0.00034795,14]
[332579661,1721311850836,-4361.54,0.00034795,14]
[332579662,1721311850857,-188.431532,0.00034795,7]
[332579663,1721311850872,-2559.66,0.00034795,14]
[332579664,1721311850888,-862.04,0.00034795,14]
[332579665,1721311850902,-3741.91,0.00034795,14]
[332579666,1721311850917,-177.647499,0.00034795,7]
[332579667,1721311850932,-205.485059,0.00034795,7]
[332579668,1721311850948,-834.33,0.00034795,14]
[332579669,1721311850964,-177.647499,0.00034795,7]
[332579670,1721311850979,-205.485059,0.00034795,7]
[332579671,1721311850995,-216.883706,0.00034795,7]
[332579672,1721311851009,-2723.46,0.00034795,14]
[332579673,1721311851024,-2883.67,0.00034795,14]
[332579674,1721311851040,-2094.02,0.00034795,14]
[332579675,1721311851054,-832.73,0.00034795,14]
[332579676,1721311851070,-526.6,0.00034795,14]
[332579677,1721311851085,-4371.66,0.00034795,14]
[332579678,1721311851101,-1570.25,0.00034795,14]
[332579679,1721311851116,-500.0,0.00034795,14]
[332579680,1721311851133,-257.805896,0.00034795,7]
[332579681,1721311851148,-260.3,0.00034795,7]
[332579682,1721311851163,-151.0,0.00034795,7]
[332579683,1721311851178,-257.805896,0.00034795,7]
[332579684,1721311851193,-151.0,0.00034795,7]
[332579685,1721311851208,-827.22,0.00034795,14]
[332579686,1721311851224,-500.0,0.00034795,14]
[332579687,1721311851238,-2109.47,0.00034795,14]
[332579688,1721311851253,-1295.74,0.00034795,14]
[332579689,1721311851268,-9931.93,0.00034795,14]
[332579690,1721311851283,-500.0,0.00034795,14]
[332579691,1721311851299,-151.0,0.00034795,7]
[332579692,1721311851313,-3719.70934038,0.00034795,14]
[332579693,1721311852842,-4031.39065962,0.00034795,14]
[332579694,1721311852854,-2627.76,0.00034795,14]
[332579695,1721311852864,-3020.04,0.00034795,14]
[332579696,1721311852875,-151.0,0.00034795,7]
[332579697,1721311852884,-206.062842,0.00034795,7]
[332579698,1721311852894,-1830.38,0.00034795,14]
[332579699,1721311852904,-151.0,0.00034795,7]
[332579700,1721311852913,-614.755031,0.00034795,7]
[332579701,1721311852923,-9438.6,0.00034795,14]
[332579702,1721311852933,-500.0,0.00034795,14]
[332579703,1721311852942,-206.062842,0.00034795,7]
[332579704,1721311852952,-1933.06,0.00034795,14]
[332579705,1721311852961,-614.755031,0.00034795,7]
[332579706,1721311852971,-721.07,0.00034795,14]
[332579707,1721311852980,-151.0,0.00034795,7]
[332579708,1721311852990,-2465.49,0.00034795,14]
[332579709,1721311852999,-1670.4,0.00034795,14]
[332579710,1721311853009,-151.0,0.00034795,7]
[332579711,1721311853018,-151.0,0.00034795,7]
[332579712,1721311853027,-1058.16,0.00034796,14]
[332579713,1721311853037,-500.0,0.00034796,14]
[332579714,1721311853049,-1488.87,0.00034796,14]
[332579715,1721311853059,-500.0,0.00034796,14]
[332579716,1721311853069,-1665.95,0.00034796,14]
[332579717,1721311853079,-2496.39,0.00034796,14]
[332579718,1721311853089,-500.0,0.00034796,14]
[332579719,1721311853099,-500.0,0.00034796,14]
[332579720,1721311853109,-500.0,0.00034796,14]
[332579721,1721311853119,-500.0,0.00034796,14]
[332579722,1721311853129,-2663.16,0.00034796,14]
[332579723,1721311853139,-500.0,0.00034796,14]
[332579724,1721311853148,-1000.0,0.00034796,14]
[332579725,1721311853157,-500.0,0.00034796,14]
[332579726,1721311853166,-4377.71,0.00034796,14]
[332579727,1721311853175,-500.0,0.00034796,14]
[332579728,1721311853185,-1021.96,0.00034796,14]
[332579729,1721311853195,-500.0,0.00034796,14]
[332579730,1721311853205,-709.67,0.00034796,14]
[332579731,1721311853215,-897.33,0.00034796,14]
[332579732,1721311853224,-500.0,0.00034796,14]
[332579733,1721311853234,-2340.33,0.00034796,14]
[332579734,1721311853244,-2659.75,0.00034796,14]
[332579735,1721311853254,-2359.83,0.00034796,14]
[332579736,1721311853264,-500.0,0.00034796,14]
[332579737,1721311853273,-500.0,0.00034796,14]
[332579738,1721311853283,-2123.1,0.00034796,7]
[332579739,1721311853297,-1274.69,0.00034796,14]
[332579740,1721311853306,-2253.88,0.00034796,14]
[332579741,1721311853316,-1957.69,0.00034796,14]
[332579742,1721311853325,-2661.5,0.00034796,14]
[332579743,1721311853336,-2477.18,0.00034796,14]
[332579744,1721311853346,-2202.41,0.00034796,14]
[332579745,1721311853355,-689.62,0.00034796,14]
[332579746,1721311853365,-1754.12,0.00034796,14]
[332579747,1721311853375,-946.16,0.00034796,14]
[332579748,1721311853384,-2022.72,0.00034796,14]
[332579749,1721311853394,-2993.4,0.00034796,14]
[332579750,1721311853403,-500.0,0.00034796,14]
[332579751,1721311853413,-500.0,0.00034796,14]
[332579752,1721311853423,-1919.65,0.00034796,14]
[332579753,1721311853432,-1865.89,0.00034796,14]
[332579754,1721311853442,-500.0,0.00034796,14]
[332579755,1721311853451,-1688.62,0.00034796,14]
[332579756,1721311853461,-151.0,0.00034796,7]
[332579757,1721311853470,-500.0,0.00034796,14]
[332579758,1721311853480,-1802.61,0.00034796,14]
[332579759,1721311853490,-151.0,0.00034796,7]
[332579760,1721311853499,-182.549811,0.00034796,7]
[332579761,1721311853509,-500.0,0.00034796,14]
[332579762,1721311853519,-1805.05,0.00034796,14]
[332579763,1721311853528,-182.549811,0.00034796,7]
[332579764,1721311853537,-151.0,0.00034796,7]
[332579765,1721311853549,-3209.86,0.00034796,14]
[332579766,1721311853559,-500.0,0.00034796,14]
[332579767,1721311853573,-151.0,0.00034796,7]
[332579768,1721311853583,-500.0,0.00034796,14]
[332579769,1721311853593,-1869.56,0.00034796,14]
[332579770,1721311853603,-151.0,0.00034796,7]
[332579771,1721311853613,-151.0,0.00034796,7]
[332579772,1721311853623,-1450.51,0.00034796,14]
[332579773,1721311853632,-151.0,0.00034796,7]
[332579774,1721311853642,-1851.04,0.00034796,14]
[332579775,1721311853654,-151.0,0.00034796,7]
[332579776,1721311853663,-151.0,0.00034796,7]
[332579777,1721311853673,-500.0,0.00034796,2]
[332579778,1721311853683,-1071.91,0.00034796,14]
[332579779,1721311853692,-625.91,0.00034796,14]
[332579780,1721311853702,-151.0,0.00034796,7]
[332579781,1721311853711,-1388.98,0.00034796,14]
[332579782,1721311853721,-1136.09,0.00034796,14]
[332579783,1721311853731,-1555.45,0.00034796,14]
[332579784,1721311853741,-500.0,0.00034796,14]
[332579785,1721311853750,-1906.79,0.00034796,14]
[332579786,1721311853760,-162.916699,0.00034796,7]
[332579787,1721311853769,-1664.85,0.00034796,14]
[332579788,1721311853779,-162.916699,0.00034796,7]
[332579789,1721311853789,-500.0,0.00034796,14]
[332579790,1721311853801,-212.192433,0.00034796,7]
[332579791,1721311853811,-2877.759506,0.00034796,7]
[332579792,1721311853820,-212.192433,0.00034796,7]
[332579793,1721311853831,-218.146693,0.00034796,7]
[332579794,1721311853840,-151.0,0.00034796,7]
[332579795,1721311853850,-218.146693,0.00034796,7]
[332579796,1721311853859,-1177.35,0.00034796,14]
[332579797,1721311853869,-780.97,0.00034796,14]
[332579798,1721311853878,-151.0,0.00034796,7]
[332579799,1721311853888,-151.0,0.00034796,7]
[332579800,1721311853898,-151.0,0.00034796,7]
[332579801,1721311853907,-151.0,0.00034796,7]
[332579802,1721311853917,-1228.48,0.00034796,14]
[332579803,1721311853928,-500.0,0.00034796,14]
[332579804,1721311853938,-151.0,0.00034796,7]
[332579805,1721311853947,-638.84,0.00034796,14]
[332579806,1721311853957,-274.10646,0.00034796,7]
[332579807,1721311853966,-2638.47,0.00034796,14]
[332579808,1721311853975,-274.10646,0.00034796,7]
[332579809,1721311853985,-764.2,0.00034796,14]
[332579810,1721311853994,-151.0,0.00034796,7]
[332579811,1721311854003,-2026.55,0.00034796,14]
[332579812,1721311854013,-151.0,0.00034796,7]
[332579813,1721311854022,-1859.08,0.00034796,14]
[332579814,1721311854031,-500.0,0.00034796,14]
[332579815,1721311854041,-2084.86,0.00034796,14]
[332579816,1721311854051,-484.020066,0.00034796,7]
[332579817,1721311854060,-1262.07,0.00034796,14]
[332579818,1721311854070,-484.020066,0.00034796,7]
[332579819,1721311854079,-151.0,0.00034796,7]
[332579820,1721311854088,-1306.14,0.00034796,14]
[332579821,1721311854098,-880.5,0.00034796,14]
[332579822,1721311854107,-500.0,0.00034796,14]
[332579823,1721311854117,-151.0,0.00034796,7]
[332579824,1721311854126,-151.0,0.00034796,7]
[332579825,1721311854135,-151.0,0.00034796,7]
[332579826,1721311854145,-188.431532,0.00034796,7]
[332579827,1721311854154,-1902.98,0.00034796,14]
[332579828,1721311854163,-188.431532,0.00034796,7]
[332579829,1721311854173,-3858.42,0.00034796,14]
[332579830,1721311854182,-177.647499,0.00034796,7]
[332579831,1721311854191,-205.485059,0.00034796,7]
[332579832,1721311854201,-177.647499,0.00034796,7]
[332579833,1721311854210,-205.485059,0.00034796,7]
[332579834,1721311854220,-1462.35,0.00034796,14]
[332579835,1721311854229,-257.805896,0.00034796,7]
[332579836,1721311854239,-606.42,0.00034796,14]
[332579837,1721311854248,-257.805896,0.00034796,7]
[332579838,1721311854258,-151.0,0.00034796,7]
[332579839,1721311854267,-151.0,0.00034796,7]
[332579840,1721311854277,-500.0,0.00034796,2]
[332579841,1721311854286,-2126.4,0.00034796,14]
[332579842,1721311854301,-151.0,0.00034796,7]
[332579843,1721311854310,-150.0,0.00034796,2]
[332579844,1721311854320,-500.0,0.00034796,14]
[332579845,1721311854329,-151.0,0.00034796,7]
[332579846,1721311854339,-1664.4,0.00034796,14]
[332579847,1721311854349,-206.062842,0.00034796,7]
[332579848,1721311854358,-151.0,0.00034796,7]
[332579849,1721311854369,-614.755031,0.00034796,7]
[332579850,1721311854378,-206.062842,0.00034796,7]
[332579851,1721311854388,-614.755031,0.00034796,7]
[332579852,1721311854397,-500.0,0.00034796,14]
[332579853,1721311854407,-151.0,0.00034796,7]
[332579854,1721311854416,-151.0,0.00034796,7]
[332579855,1721311854426,-151.0,0.00034796,7]
[332579856,1721311854436,-174035.77686402,0.000348,60]
[332579857,1721311854482,-98312.88815393,0.000348,60]
[332579858,1721311854494,-810.36488014,0.000348,60]
[332579859,1721311855784,-155.0,0.00014671,2]
[332579860,1721311855960,-250.0,0.00029128,2]
[332579861,1721311855971,-500.0,0.00034794,14]
[332579862,1721311855981,-2216.98,0.00034794,14]
[332579863,1721311855991,-2216.98,0.00034794,14]
[332579864,1721311856000,-7933.79495501,0.000348,60]
[332579865,1721311856010,-151.0,0.000348,7]
[332579866,1721311856020,-151.0,0.000348,7]
[332579867,1721311856030,-151.0,0.000348,7]
[332579868,1721311856041,-151.0,0.000348,7]
[332579869,1721311856051,-151.0,0.000348,7]
[332579870,1721311856060,-243.723664,0.000348,7]
[332579871,1721311856070,-151.0,0.000348,7]
[332579872,1721311856080,-243.723664,0.000348,7]
[332579873,1721311856089,-151.0,0.000348,7]
[332579874,1721311856100,-151.0,0.000348,7]
[332579875,1721311856111,-151.0,0.000348,7]
[332579876,1721311856120,-506.816622,0.000348,7]
[332579877,1721311856131,-399.507536,0.000348,7]
[332579878,1721311856141,-506.816622,0.000348,7]
[332579879,1721311856150,-399.507536,0.000348,7]
[332579880,1721311856160,-151.0,0.000348,7]
[332579881,1721311856169,-1477.125925,0.000348,7]
[332579882,1721311856179,-151.0,0.000348,7]
[332579883,1721311856189,-151.0,0.000348,7]
[332579884,1721311856198,-1477.125925,0.000348,7]
[332579885,1721311856207,-151.0,0.000348,7]
[332579886,1721311856217,-151.0,0.000348,7]
[332579887,1721311856227,-151.0,0.000348,7]
[332579888,1721311856236,-151.0,0.000348,7]
[332579889,1721311856246,-316.671884,0.000348,7]
[332579890,1721311856256,-316.671884,0.000348,7]
[332579891,1721311856266,-393.456525,0.000348,7]
[332579892,1721311856276,-393.456525,0.000348,7]
[332579893,1721311856285,-151.0,0.000348,7]
[332579894,1721311856296,-151.0,0.000348,7]
[332579895,1721311856308,-182.549811,0.000348,7]
[332579896,1721311856317,-151.0,0.000348,7]
[332579897,1721311856329,-182.549811,0.000348,7]
[332579898,1721311856338,-151.0,0.000348,7]
[332579899,1721311856348,-151.0,0.000348,7]
[332579900,1721311856357,-151.0,0.000348,7]
[332579901,1721311856366,-151.0,0.000348,7]
[332579902,1721311856375,-151.0,0.000348,7]
[332579903,1721311856384,-151.0,0.000348,7]
[332579904,1721311856394,-400.0,0.000348,12]
[332579905,1721311856406,-212.192433,0.000348,7]
[332579906,1721311856415,-212.192433,0.000348,7]
[332579907,1721311856426,-274.10646,0.000348,7]
[332579908,1721311856435,-274.10646,0.000348,7]
[332579909,1721311856444,-19831.62196886,0.000348,14]
[332579910,1721311856458,-2693.4448,0.000348,14]
[332579911,1721311856722,-624.78193251,0.000348,14]
[332579912,1721311856733,-27085.77207586,0.000348,14]
[332579913,1721311856752,-973.24910627,0.00034795,14]
[332579914,1721311856764,-590.59,0.00034795,14]
[332579915,1721311856775,-653.14089373,0.00034795,14]
[332579916,1721311856785,-2715.64274997,0.000348,14]
[332579917,1721311945707,500.0,0.00025008,120]
[332579918,1721312708384,150.0,0.00014,2]
[332579919,1721312708411,150.0,0.00014,2]
[332579920,1721312708437,150.0,0.00014,2]
[332579921,1721312708464,150.0,0.00014,2]
[332579922,1721312708492,150.0,0.00014,2]
[332579923,1721312708521,150.0,0.00014,2]
[332579924,1721312708549,150.0,0.00014,2]
[332579925,1721312708577,150.0,0.00014,2]
[332579926,1721312708605,150.0,0.00014,2]
[332579927,1721312708633,150.0,0.00014,2]
[332579928,1721312708659,150.0,0.00014,2]
[332579929,1721312708686,150.0,0.00014,2]
[332579930,1721312708717,976042.57261538,0.00014,2]
[332579931,1721312711014,-538.87014568,0.00014271,2]
[332579933,1721312755647,150.0,0.0001358,2]
[332579934,1721312755668,215.31027139,0.0001358,2]
[332579935,1721312755689,10465.02180654,0.0001358,2]
[332579936,1721312756743,1504.20404622,0.0002,30]
[332579937,1721312767864,-425.72105296,0.00014271,2]
[332579938,1721312768695,-499.47462034,0.00014271,2]
[332579939,1721312770245,-498.71545109,0.00014271,2]
[332579963,1721313032886,-7475.52332408,0.00014271,2]
[332579964,1721313032896,-300.06839446,0.00014271,2]
[332579965,1721313032906,-1050.0,0.00014271,2]
[332579966,1721313032916,-538.87014568,0.00014671,2]
[332579967,1721313032926,-538.87014568,0.00014671,2]
[332579968,1721313032939,-163.92127245,0.00014999,2]
[332579969,1721313032948,-267.31376238,0.00015,14]
[332579970,1721313032958,-155.0,0.00015737,2]
[332579971,1721313032968,-499.47462034,0.00015737,2]
[332579972,1721313032978,-158.82709371,0.00016999,2]
[332579973,1721313032993,-153.39614122,0.00018102,2]
[332579974,1721313033003,-1000.0,0.00019546,2]
[332579975,1721313033016,-150.99,0.00019546,2]
[332579976,1721313033027,-1021.12761227,0.00019725,2]
[332579977,1721313033037,-153.54583882,0.00019943,2]
[332579978,1721313033046,-154.98095529,0.00019949,2]
[332579979,1721313033057,-150.0,0.00019999,2]
[332579980,1721313033067,-16110.93115355,0.0002,2]
[332579981,1721313033076,-753.59338141,0.00020006,2]
[332579982,1721313033087,-597.80485648,0.00020006,2]
[332579983,1721313033096,-318.21,0.00020657,2]
[332579984,1721313033107,-499.99,0.00020657,2]
[332579985,1721313033116,-8724.05,0.00020657,2]
[332579986,1721313033126,-153.50621038,0.00021127,2]
[332579987,1721313033136,-160.96479368,0.00021167,2]
[332579988,1721313033145,-225.38,0.00021644,2]
[332579989,1721313033155,-163.84333419,0.00023075,2]
[332579990,1721313033164,-155.85175389,0.00023237,2]
[332579991,1721313033174,-1066.0,0.00024,2]
[332579992,1721313033185,-153.39614122,0.00024148,2]
[332579993,1721313033194,-167.60243727,0.00025008,2]
[332579994,1721313033204,-155.0,0.00025008,2]
[332579995,1721313033214,-235.01880548,0.00026053,2]
[332579996,1721313033223,-150.23,0.00026102,2]
[332579997,1721313033233,-156.09116541,0.00026321,2]
[332579998,1721313033246,-157.49799237,0.00026669,2]
[332579999,1721313033256,-225.38,0.00027714,2]
[332580000,1721313033266,-500.0,0.00028,14]
[332580001,1721313033275,-150.0,0.0002821,2]
[332580002,1721313033285,-3000.0,0.00028337,60]
[332580003,1721313033294,-200.0,0.00028403,2]
[332580004,1721313033303,-150.23,0.00028492,2]
[332580005,1721313033313,-250.0,0.00028617,2]
[332580006,1721313033323,-500.0,0.00028765,2]
[332580007,1721313033334,-979.69,0.0002928,2]
[332580008,1721313033344,-174.686817,0.00029294,2]
[332580009,1721313033354,-2244.84,0.00029334,2]
[332580010,1721313033363,-1000.0,0.00029392,2]
[332580011,1721313033373,-250.0,0.00029518,2]
[332580012,1721313033382,-2835.98042277,0.00029581,2]
[332580013,1721313033392,-2111.5348224,0.00029582,2]
[332580014,1721313033401,-163.84333421,0.00029632,2]
[332580015,1721313033411,-166.90315977,0.00029664,2]
[332580016,1721313033420,-346.96801926,0.0002977,2]
[332580017,1721313033430,-155.77812459,0.0002977,2]
[332580018,1721313033440,-529.59050397,0.00029785,2]
[332580019,1721313033449,-553.58196334,0.00029785,2]
[332580020,1721313033459,-159.24060617,0.00029785,2]
[332580021,1721313033469,-1836.58,0.00029786,2]
[332580022,1721313033479,-202.81794501,0.00029893,2]
[332580023,1721313033493,-156.48758241,0.00029962,2]
[332580024,1721313033503,-1852.42,0.00029963,2]
[332580025,1721313033512,-1879.80464216,0.00029974,2]
[332580026,1721313033522,-1010.92,0.00029975,2]
[332580027,1721313033532,-200.0,0.00029975,2]
[332580028,1721313033541,-599.45308107,0.00029999,2]
[332580029,1721313033551,-504.33809299,0.00029999,2]
[332580030,1721313033560,-500.0,0.0003,7]
[332580031,1721313033570,-1056.280958,0.0003,30]
[332580032,1721313033579,-155.99397924,0.00030034,4]
[332580033,1721313033589,-176.18,0.00030037,120]
[332580034,1721313033599,-2962.23109773,0.00030186,4]
[332580035,1721313033609,-300.0,0.00030186,4]
[332580036,1721313033619,-566.47655342,0.00030186,4]
[332580037,1721313033629,-150.23,0.00030881,2]
[332580038,1721313033638,-293.104727,0.00030959,14]
[332580039,1721313033648,-156.23,0.00031023,120]
[332580040,1721313033658,-150.70477216,0.0003129,7]
[332580041,1721313033667,-164.9,0.00031737,2]
[332580042,1721313033676,-164.9,0.00031776,2]
[332580043,1721313033686,-293.104727,0.00031781,14]
[332580044,1721313033696,-164.9,0.00031816,2]
[332580045,1721313033705,-167.19,0.00031817,2]
[332580046,1721313033715,-164.9,0.00031856,2]
[332580047,1721313033724,-1000.0,0.00031856,2]
[332580048,1721313033733,-164.9,0.00031895,2]
[332580049,1721313033745,-164.73,0.00032601,120]
[332580050,1721313033755,-293.104727,0.00032603,14]
[332580051,1721313033764,-333.77,0.000328,60]
[332580052,1721313033774,-180.0,0.00032973,2]
[332580053,1721313033784,-2000.0,0.00033,60]
[332580054,1721313033794,-1000.0,0.00033066,2]
[332580055,1721313033804,-153.39614122,0.0003317,7]
[332580056,1721313033813,-723.14,0.0003317,2]
[332580057,1721313033823,-188.9,0.0003317,2]
[332580058,1721313033833,-150.0,0.0003317,2]
[332580059,1721313033843,-150.23,0.00033271,2]
[332580060,1721313033852,-293.104727,0.00033425,14]
[332580061,1721313033861,-3000.0,0.000337,2]
[332580062,1721313033871,-169.63,0.0003374,2]
[332580063,1721313033880,-225.38,0.00033785,2]
[332580064,1721313033889,-529.43,0.00034037,2]
[332580065,1721313033899,-690.29,0.00034054,60]
[332580066,1721313033908,-500.0,0.00034054,60]
[332580067,1721313033917,-2456.0,0.00034102,2]
[332580068,1721313033927,-293.104727,0.00034247,14]
[332580069,1721313033938,-690.29,0.00034328,63]
[332580070,1721313033948,-500.0,0.00034328,63]
[332580071,1721313033957,-2874.23401,0.0003445,2]
[332580072,1721313033967,-1825.63097981,0.0003446,2]
[332580073,1721313033976,-1000.0,0.000345,10]
[332580074,1721313033986,-156.58508643,0.00034518,15]
[332580075,1721313033995,-4193.67726268,0.00034518,15]
[332580076,1721313034005,-2500.0,0.00034518,2]
[332580077,1721313034016,-7500.0,0.00034518,2]
[332580078,1721313034027,-385.96925274,0.00034546,2]
[332580079,1721313034036,-4193.67726259,0.00034549,15]
[332580080,1721313034046,-500.0,0.00034549,2]
[332580081,1721313034055,-192.71612659,0.00034551,2]
[332580082,1721313034065,-405.32046058,0.00034551,2]
[332580083,1721313034074,-4193.67726259,0.00034579,15]
[332580084,1721313034082,-690.29,0.00034602,66]
[332580085,1721313034091,-500.0,0.00034602,66]
[332580086,1721313034100,-100000.0,0.00034605,2]
[332580087,1721313034111,-4193.67726259,0.0003461,15]
[332580088,1721313034120,-192762.4822,0.00034618,2]
[332580089,1721313034130,-4193.67726259,0.0003464,15]
[332580090,1721313034140,-4193.67726259,0.00034671,15]
[332580091,1721313034149,-156.62108926,0.0003469,2]
[332580092,1721313034159,-179.63502138,0.00034691,4]
[332580093,1721313034169,-156.62108925,0.00034691,2]
[332580094,1721313034179,-1000.0,0.00034692,2]
[332580095,1721313034188,-156.62108925,0.00034693,2]
[332580096,1721313034199,-2311.04,0.00034693,14]
[332580097,1721313034208,-179.62485198,0.00034694,7]
[332580098,1721313034218,-169.69998369,0.00034694,2]
[332580099,1721313034228,-156.62108925,0.00034694,2]
[332580100,1721313034240,-204.5471273,0.00034694,2]
[332580101,1721313034251,-6583.6712,0.000347,2]
[332580102,1721313034261,-4193.67726259,0.00034701,15]
[332580103,1721313034276,-155.20635373,0.00034714,4]
[332580104,1721313034285,-500.0,0.00034715,10]
[332580105,1721313034296,-200.0,0.00034715,10]
[332580106,1721313034306,-4193.67726259,0.00034732,15]
[332580107,1721313034315,-247.09967059,0.00034734,4]
[332580108,1721313034325,-155.57608458,0.00034735,4]
[332580109,1721313034337,-438.874332,0.00034737,4]
[332580110,1721313034347,-484.29114597,0.00034738,4]
[332580111,1721313034356,-155.16,0.0003474,2]
[332580112,1721313034366,-204.5471273,0.00034742,2]
[332580113,1721313034375,-165.92746,0.00034745,4]
[332580114,1721313034384,-208.90933639,0.00034745,4]
[332580115,1721313034394,-717.54836549,0.00034746,2]
[332580116,1721313034403,-276.76557655,0.00034747,4]
[332580117,1721313034413,-250.0,0.00034749,4]
[332580118,1721313034423,-227.41308538,0.00034749,7]
[332580119,1721313034432,-88821.7364728,0.0003475,14]
[332580120,1721313034441,-150.0,0.00034752,2]
[332580121,1721313034451,-4193.67726259,0.00034762,15]
[332580122,1721313034460,-334.36254336,0.0003477,4]
[332580123,1721313034469,-305.81510484,0.0003477,4]
[332580124,1721313034479,-202.36277623,0.0003477,4]
[332580125,1721313034490,-367.38681513,0.00034771,4]
[332580126,1721313034500,-166.49751087,0.0003478,2]
[332580127,1721313034509,-3968.86582924,0.00034784,5]
[332580128,1721313034518,-15875.463317,0.00034784,5]
[332580129,1721313034527,-155.0,0.00034789,4]
[332580130,1721313034537,-50783.92986878,0.0003479,10]
[332580131,1721313034547,-204.5471273,0.0003479,2]
[332580132,1721313034556,-943.30798427,0.0003479,10]
[332580133,1721313034566,-357.79596125,0.00034793,50]
[332580134,1721313034581,-9712.98483781,0.00034793,50]
[332580135,1721313034590,-301.00811332,0.00034793,10]
[332580136,1721313034601,-300.0,0.00034793,10]
[332580137,1721313034611,-150.0,0.00034793,30]
[332580138,1721313034621,-625.02893003,0.00034793,14]
[332580139,1721313034631,-4193.67726259,0.00034793,15]
[332580140,1721313034641,-150880.52110751,0.00034794,21]
[332580141,1721313034651,-1000.0,0.00034794,2]
[332580142,1721313034662,-1000.0,0.00034794,2]
[332580143,1721313034672,-1000.0,0.00034794,2]
[332580144,1721313034683,-1000.0,0.00034794,2]
[332580145,1721313034692,-1000.0,0.00034794,2]
[332580146,1721313034703,-1000.0,0.00034794,2]
[332580147,1721313034712,-1000.0,0.00034794,2]
[332580148,1721313034722,-1000.0,0.00034794,2]
[332580149,1721313034732,-1000.0,0.00034794,2]
[332580150,1721313034745,-1000.0,0.00034794,2]
[332580151,1721313034754,-1000.0,0.00034794,2]
[332580152,1721313034763,-1000.0,0.00034794,2]
[332580153,1721313034773,-1000.0,0.00034794,2]
[332580154,1721313034782,-1000.0,0.00034794,2]
[332580155,1721313034792,-1000.0,0.00034794,2]
[332580156,1721313034802,-1000.0,0.00034794,2]
[332580157,1721313034812,-1000.0,0.00034794,2]
[332580158,1721313034822,-1000.0,0.00034794,2]
[332580159,1721313034832,-1000.0,0.00034794,2]
[332580160,1721313034842,-1000.0,0.00034794,2]
[332580161,1721313034852,-1000.0,0.00034794,2]
[332580162,1721313034862,-1000.0,0.00034794,2]
[332580163,1721313034872,-1000.0,0.00034794,2]
[332580164,1721313034881,-1000.0,0.00034794,2]
[332580165,1721313034892,-1000.0,0.00034794,2]
[332580166,1721313034901,-1000.0,0.00034794,2]
[332580167,1721313034911,-1000.0,0.00034794,2]
[332580168,1721313034921,-1000.0,0.00034794,2]
[332580169,1721313034935,-1000.0,0.00034794,2]
[332580170,1721313034945,-1000.0,0.00034794,2]
[332580171,1721313034955,-1000.0,0.00034794,2]
[332580172,1721313034966,-1000.0,0.00034794,2]
[332580173,1721313034976,-1000.0,0.00034794,2]
[332580174,1721313034990,-1000.0,0.00034794,2]
[332580175,1721313035000,-1000.0,0.00034794,2]
[332580176,1721313035011,-1000.0,0.00034794,2]
[332580177,1721313035020,-1000.0,0.00034794,2]
[332580178,1721313035030,-1000.0,0.00034794,2]
[332580179,1721313035039,-1000.0,0.00034794,2]